fUST/lending_fUST_20250708
["ID","MTS","AMOUNT","RATE_DAILY","PERIOD"]
[370374948,1751985046445,-460.0,0.00019452,2]
[370374950,1751985046454,-216.55430421,0.00019452,2]
[370374952,1751985046463,-460.0,0.00019452,2]
[370374954,1751985046473,-460.0,0.00019452,2]
[370374956,1751985046487,-464.38289261,0.00019452,2]
[370374958,1751985046496,-460.0,0.00019452,2]
[370374960,1751985046506,-460.0,0.00019452,2]
[370374962,1751985046515,-596.01132318,0.00019452,2]
[370374964,1751985046525,-525.86,0.00019452,2]
[370374966,1751985046534,-460.0,0.00019452,2]
[370374968,1751985046544,-460.0,0.00019452,2]
[370374970,1751985046554,-583.09,0.00019452,2]
[370374972,1751985046564,-460.0,0.00019452,2]
[370374974,1751985046573,-1050.14,0.00019452,2]
[370374976,1751985046583,-460.0,0.00019452,2]
[370374978,1751985046592,-460.0,0.00019452,2]
[370374980,1751985046602,-553.72,0.00019452,2]
[370374982,1751985046612,-460.0,0.00019452,2]
[370374984,1751985046621,-460.0,0.00019452,2]
[370374986,1751985046632,-464.85381199,0.00019452,2]
[370374988,1751985046642,-460.0,0.00019452,2]
[370374990,1751985046651,-863.75,0.00019452,2]
[370374992,1751985046661,-460.0,0.00019452,2]
[370374994,1751985046670,-460.0,0.00019452,2]
[370374996,1751985046680,-460.0,0.00019452,2]
[370374998,1751985046691,-460.0,0.00019452,2]
[370375000,1751985046700,-460.0,0.00019452,2]
[370375002,1751985046711,-460.0,0.00019452,2]
[370375004,1751985046721,-460.0,0.00019452,2]
[370375006,1751985046730,-490.98,0.00019452,2]
[370375008,1751985046739,-460.0,0.00019452,2]
[370375010,1751985046749,-460.0,0.00019452,2]
[370375012,1751985046758,-460.0,0.00019452,2]
[370375015,1751985046768,-493.90822989,0.00019452,2]
[370375017,1751985046777,-460.0,0.00019452,2]
[370375019,1751985046787,-460.0,0.00019452,2]
[370375021,1751985046796,-1031.65,0.00019452,2]
[370375023,1751985046806,-460.0,0.00019452,2]
[370375025,1751985046815,-460.0,0.00019452,2]
[370375027,1751985046824,-460.0,0.00019452,2]
[370375029,1751985046834,-464.95034664,0.00019452,2]
[370375030,1751985046843,-1197.75,0.00019452,2]
[370375032,1751985046852,-460.0,0.00019452,2]
[370375034,1751985046861,-460.0,0.00019452,2]
[370375036,1751985046870,-460.0,0.00019452,2]
[370375038,1751985046881,-460.0,0.00019452,2]
[370375040,1751985046891,-460.0,0.00019452,2]
[370375042,1751985046900,-460.0,0.00019452,2]
[370375044,1751985046910,-460.0,0.00019452,2]
[370375046,1751985046919,-460.0,0.00019452,2]
[370375048,1751985046928,-460.0,0.00019452,2]
[370375050,1751985046939,-460.0,0.00019452,2]
[370375052,1751985046948,-5692.61,0.00019452,2]
[370375054,1751985046958,-460.0,0.00019452,2]
[370375056,1751985046967,-460.0,0.00019452,2]
[370375059,1751985046977,-460.0,0.00019452,2]
[370375061,1751985046986,-460.0,0.00019452,2]
[370375063,1751985046995,-462.7614612,0.00019452,2]
[370375065,1751985047004,-474.48766616,0.00019452,2]
[370375067,1751985047014,-460.0,0.00019452,2]
[370375069,1751985047023,-1545.8,0.00019452,2]
[370375070,1751985047032,-460.0,0.00019452,2]
[370375072,1751985047041,-460.0,0.00019452,2]
[370375073,1751985047050,-460.0,0.00019452,2]
[370375074,1751985047059,-605.54118815,0.00019452,2]
[370375075,1751985047069,-3097.84,0.00019452,2]
[370375076,1751985047078,-460.0,0.00019452,2]
[370375077,1751985047087,-1639.3,0.00019452,2]
[370375078,1751985047097,-357.64424055,0.00019452,2]
[370375079,1751985047106,-3002.88,0.00019452,2]
[370375080,1751985047115,-686.85,0.00019452,2]
[370375081,1751985047125,-460.0,0.00019452,2]
[370375082,1751985047134,-460.0,0.00019452,2]
[370375083,1751985047143,-460.0,0.00019452,2]
[370375084,1751985047152,-460.0,0.00019452,2]
[370375085,1751985047162,-460.0,0.00019452,2]
[370375086,1751985047171,-460.0,0.00019452,2]
[370375087,1751985047181,-460.0,0.00019452,2]
[370375088,1751985047192,-460.0,0.00019452,2]
[370375089,1751985047201,-460.0,0.00019452,2]
[370375090,1751985047211,-2327.95,0.00019452,2]
[370375091,1751985047220,-460.0,0.00019452,2]
[370375092,1751985047229,-254.2608185,0.00019452,2]
[370375094,1751985047239,-460.0,0.00019452,2]
[370375097,1751985047249,-460.0,0.00019452,2]
[370375099,1751985047258,-933.93,0.00019452,2]
[370375100,1751985047269,-460.0,0.00019452,2]
[370375102,1751985047278,-460.0,0.00019452,2]
[370375105,1751985047288,-460.0,0.00019452,2]
[370375107,1751985047297,-460.0,0.00019452,2]
[370375109,1751985047307,-460.0,0.00019452,2]
[370375111,1751985047316,-460.0,0.00019452,2]
[370375112,1751985047325,-460.0,0.00019452,2]
[370375115,1751985047335,-1160.18,0.00019452,2]
[370375116,1751985047344,-1139.78,0.00019452,2]
[370375119,1751985047353,-460.0,0.00019452,2]
[370375121,1751985047363,-4459.04,0.00019452,2]
[370375123,1751985047372,-460.0,0.00019452,2]
[370375125,1751985047382,-460.0,0.00019452,2]
[370375127,1751985047391,-460.0,0.00019452,2]
[370375128,1751985047400,-460.0,0.00019452,2]
[370375131,1751985047410,-941.49,0.00019452,2]
[370375133,1751985047420,-460.0,0.00019452,2]
[370375135,1751985047429,-460.0,0.00019452,2]
[370375137,1751985047439,-460.0,0.00019452,2]
[370375138,1751985047448,-460.0,0.00019452,2]
[370375141,1751985047458,-1141.57,0.00019452,2]
[370375143,1751985047467,-438.26491176,0.00019452,2]
[370375144,1751985047477,-460.0,0.00019452,2]
[370375147,1751985047491,-460.0,0.00019452,2]
[370375148,1751985047500,-460.0,0.00019452,2]
[370375151,1751985047509,-700.29,0.00019452,2]
[370375152,1751985047518,-460.0,0.00019452,2]
[370375154,1751985047530,-460.0,0.00019452,2]
[370375157,1751985047539,-704.42,0.00019452,2]
[370375159,1751985047549,-460.0,0.00019452,2]
[370375161,1751985047559,-279.1026067,0.00019452,2]
[370375163,1751985047568,-521.65718421,0.00019452,2]
[370375165,1751985047578,-550.0,0.00019452,2]
[370375167,1751985047587,-574.29,0.00019452,2]
[370375169,1751985047596,-460.0,0.00019452,2]
[370375171,1751985047606,-460.0,0.00019452,2]
[370375173,1751985047615,-460.0,0.00019452,2]
[370375175,1751985047625,-1689.38,0.00019452,2]
[370375177,1751985047634,-460.0,0.00019452,2]
[370375179,1751985047643,-3240.33,0.00019452,2]
[370375181,1751985047653,-460.0,0.00019452,2]
[370375183,1751985047662,-460.0,0.00019452,2]
[370375185,1751985047672,-460.0,0.00019452,2]
[370375187,1751985047681,-460.0,0.00019452,2]
[370375189,1751985047691,-460.0,0.00019452,2]
[370375191,1751985047700,-460.0,0.00019452,2]
[370375193,1751985047710,-460.0,0.00019452,2]
[370375195,1751985047721,-6257.33,0.00019452,2]
[370375197,1751985047730,-460.0,0.00019452,2]
[370375199,1751985047739,-460.0,0.00019452,2]
[370375201,1751985047749,-460.0,0.00019452,2]
[370375203,1751985047761,-843.0,0.00019452,2]
[370375205,1751985047770,-460.0,0.00019452,2]
[370375207,1751985047779,-777.4,0.00019452,2]
[370375209,1751985047789,-482.61461814,0.00019452,2]
[370375211,1751985047798,-460.0,0.00019452,2]
[370375213,1751985047807,-597.41322904,0.00019452,2]
[370375215,1751985047816,-1076.58,0.00019452,2]
[370375217,1751985047826,-460.0,0.00019452,2]
[370375219,1751985047835,-460.0,0.00019452,2]
[370375221,1751985047844,-460.0,0.00019452,2]
[370375223,1751985047853,-460.0,0.00019452,2]
[370375225,1751985047863,-1097.71,0.00019452,2]
[370375227,1751985047872,-3328.31,0.00019452,2]
[370375229,1751985047882,-460.0,0.00019452,2]
[370375230,1751985047891,-460.0,0.00019452,2]
[370375232,1751985047901,-460.0,0.00019452,2]
[370375234,1751985047910,-826.32,0.00019452,2]
[370375237,1751985047920,-460.0,0.00019452,2]
[370375238,1751985047929,-444.35659106,0.00019452,2]
[370375240,1751985047939,-460.0,0.00019452,2]
[370375243,1751985047949,-460.0,0.00019452,2]
[370375245,1751985047958,-460.0,0.00019452,2]
[370375246,1751985047968,-460.0,0.00019452,2]
[370375248,1751985047977,-1481.55,0.00019452,2]
[370375250,1751985047986,-461.88848629,0.00019452,2]
[370375252,1751985047996,-460.0,0.00019452,2]
[370375254,1751985048005,-460.0,0.00019452,2]
[370375256,1751985048015,-460.0,0.00019452,2]
[370375258,1751985048025,-4868.85,0.00019452,2]
[370375260,1751985048034,-460.0,0.00019452,2]
[370375263,1751985048044,-491.71760817,0.00019452,2]
[370375265,1751985048054,-460.0,0.00019452,2]
[370375267,1751985048065,-699.81,0.00019452,2]
[370375269,1751985048074,-460.0,0.00019452,2]
[370375271,1751985048083,-2307.53,0.00019452,2]
[370375273,1751985048094,-460.0,0.00019452,2]
[370375275,1751985048103,-831.44,0.00019452,2]
[370375277,1751985048113,-500.0,0.00019452,2]
[370375278,1751985048122,-1059.86,0.00019452,2]
[370375280,1751985048132,-460.0,0.00019452,2]
[370375282,1751985048141,-460.0,0.00019452,2]
[370375284,1751985048150,-1232.22,0.00019452,2]
[370375286,1751985048160,-807.22,0.00019452,2]
[370375288,1751985048170,-460.0,0.00019452,2]
[370375290,1751985048180,-837.96,0.00019452,2]
[370375292,1751985048191,-460.0,0.00019452,2]
[370375294,1751985048201,-460.0,0.00019452,2]
[370375296,1751985048211,-1305.72,0.00019452,2]
[370375298,1751985048220,-729.81,0.00019452,2]
[370375300,1751985048230,-460.0,0.00019452,2]
[370375303,1751985048240,-460.0,0.00019452,2]
[370375305,1751985048249,-460.0,0.00019452,2]
[370375307,1751985048259,-460.0,0.00019452,2]
[370375308,1751985048268,-460.0,0.00019452,2]
[370375310,1751985048278,-2787.09,0.00019452,2]
[370375312,1751985048289,-3310.96,0.00019452,2]
[370375314,1751985048299,-213.12816697,0.00019452,2]
[370375316,1751985048308,-460.0,0.00019452,2]
[370375318,1751985048319,-460.0,0.00019452,2]
[370375320,1751985048329,-460.0,0.00019452,2]
[370375322,1751985048339,-608.21,0.00019452,2]
[370375325,1751985048350,-460.0,0.00019452,2]
[370375327,1751985048359,-460.0,0.00019452,2]
[370375329,1751985048370,-1476.62,0.00019452,2]
[370375331,1751985048379,-647.74,0.00019452,2]
[370375333,1751985048389,-460.0,0.00019452,2]
[370375335,1751985048399,-460.0,0.00019452,2]
[370375337,1751985048409,-460.0,0.00019452,2]
[370375339,1751985048419,-460.0,0.00019452,2]
[370375341,1751985048428,-747.86,0.00019452,2]
[370375343,1751985048439,-460.0,0.00019452,2]
[370375345,1751985048449,-460.0,0.00019452,2]
[370375346,1751985048458,-665.98,0.00019452,2]
[370375347,1751985048468,-461.07781412,0.00019452,2]
[370375349,1751985048478,-460.0,0.00019452,2]
[370375350,1751985048491,-460.0,0.00019452,2]
[370375352,1751985048500,-2994.98,0.00019452,2]
[370375354,1751985048510,-587.11,0.00019452,2]
[370375355,1751985048519,-460.0,0.00019452,2]
[370375357,1751985048530,-686.88,0.00019452,2]
[370375358,1751985048539,-460.0,0.00019452,2]
[370375360,1751985048549,-460.0,0.00019452,2]
[370375361,1751985048560,-460.0,0.00019452,2]
[370375363,1751985048569,-460.0,0.00019452,2]
[370375364,1751985048579,-1028.23,0.00019452,2]
[370375366,1751985048588,-468.15749242,0.00019452,2]
[370375367,1751985048598,-465.07,0.00019452,2]
[370375369,1751985048607,-151.0,0.000195,2]
[370375370,1751985048616,-500.0,0.000196,2]
[370375374,1751985048665,-500.79233465,0.000196,2]
[370375375,1751985048674,-151.0,0.000196,2]
[370375377,1751985048684,-151.0,0.000197,2]
[370375378,1751985048693,-1000.0,0.00019721,2]
[370375380,1751985048703,-1000.0,0.00019721,2]
[370375382,1751985048713,-443.30882593,0.00019721,2]
[370375383,1751985048722,-1000.0,0.00019721,2]
[370375385,1751985048732,-1000.0,0.00019721,2]
[370375387,1751985048742,-500.0,0.00019721,2]
[370375388,1751985048751,-1000.0,0.00019721,2]
[370375390,1751985048762,-1000.0,0.00019721,2]
[370375391,1751985048772,-1000.0,0.00019721,2]
[370375393,1751985048782,-1000.0,0.00019721,2]
[370375395,1751985048791,-954.40572668,0.00019721,2]
[370375396,1751985048801,-1000.0,0.00019721,2]
[370375397,1751985048810,-1000.0,0.00019721,2]
[370375399,1751985048819,-1001.55669578,0.00019721,2]
[370375401,1751985048828,-500.92668472,0.00019721,2]
[370375402,1751985048837,-491.04253568,0.00019721,2]
[370375404,1751985048847,-500.0,0.00019721,2]
[370375405,1751985048856,-500.0,0.00019725,2]
[370375407,1751985048866,-460.0,0.00019726,2]
[370375409,1751985048875,-460.0,0.00019726,2]
[370375410,1751985048884,-460.0,0.00019726,2]
[370375412,1751985048894,-460.0,0.00019726,2]
[370375413,1751985048903,-460.0,0.00019726,2]
[370375415,1751985048912,-460.0,0.00019726,2]
[370375417,1751985048921,-460.0,0.00019726,2]
[370375418,1751985048930,-460.0,0.00019726,2]
[370375420,1751985048943,-460.0,0.00019726,2]
[370375421,1751985048952,-460.0,0.00019726,2]
[370375423,1751985048962,-460.0,0.00019726,2]
[370375425,1751985048971,-460.0,0.00019726,2]
[370375426,1751985048980,-460.0,0.00019726,2]
[370375428,1751985048990,-460.0,0.00019726,2]
[370375430,1751985048999,-449.86007187,0.00019726,2]
[370375431,1751985049008,-460.0,0.00019726,2]
[370375433,1751985049017,-271.43820573,0.00019726,2]
[370375434,1751985049027,-460.0,0.00019726,2]
[370375436,1751985049037,-460.0,0.00019726,2]
[370375438,1751985049046,-460.0,0.00019726,2]
[370375439,1751985049055,-460.0,0.00019726,2]
[370375441,1751985049065,-460.0,0.00019726,2]
[370375442,1751985049074,-460.0,0.00019726,2]
[370375444,1751985049083,-460.0,0.00019726,2]
[370375445,1751985049093,-460.0,0.00019726,2]
[370375447,1751985049102,-460.0,0.00019726,2]
[370375449,1751985049112,-460.0,0.00019726,2]
[370375450,1751985049121,-460.0,0.00019726,2]
[370375452,1751985049131,-460.0,0.00019726,2]
[370375454,1751985049141,-460.0,0.00019726,2]
[370375455,1751985049151,-540.0,0.00019726,2]
[370375457,1751985049161,-460.0,0.00019726,2]
[370375458,1751985049170,-460.0,0.00019726,2]
[370375460,1751985049179,-460.0,0.00019726,2]
[370375462,1751985049191,-187.69660434,0.00019726,2]
[370375463,1751985049200,-460.0,0.00019726,2]
[370375465,1751985049210,-460.0,0.00019726,2]
[370375466,1751985049219,-358.27565661,0.00019726,2]
[370375468,1751985049229,-460.0,0.00019726,2]
[370375470,1751985049238,-460.0,0.00019726,2]
[370375471,1751985049247,-821.82,0.00019726,2]
[370375473,1751985049256,-460.0,0.00019726,2]
[370375474,1751985049266,-460.0,0.00019726,2]
[370375476,1751985049275,-460.0,0.00019726,2]
[370375477,1751985049284,-460.0,0.00019726,2]
[370375479,1751985049293,-460.0,0.00019726,2]
[370375481,1751985049303,-460.0,0.00019726,2]
[370375482,1751985049313,-526.63457769,0.00019726,2]
[370375484,1751985049323,-460.0,0.00019726,2]
[370375485,1751985049333,-467.43372384,0.00019726,2]
[370375487,1751985049342,-460.0,0.00019726,2]
[370375489,1751985049352,-460.0,0.00019726,2]
[370375490,1751985049362,-460.0,0.00019726,2]
[370375492,1751985049371,-460.0,0.00019726,2]
[370375493,1751985049380,-372.59250816,0.00019726,2]
[370375495,1751985049390,-460.0,0.00019726,2]
[370375497,1751985049400,-460.0,0.00019726,2]
[370375498,1751985049410,-460.0,0.00019726,2]
[370375500,1751985049419,-460.0,0.00019726,2]
[370375501,1751985049428,-460.0,0.00019726,2]
[370375503,1751985049438,-570.33,0.00019726,2]
[370375504,1751985049447,-460.0,0.00019726,2]
[370375506,1751985049456,-636.09,0.00019726,2]
[370375508,1751985049466,-760.08,0.00019726,2]
[370375509,1751985049475,-460.0,0.00019726,2]
[370375511,1751985049490,-370.34897506,0.00019726,2]
[370375513,1751985049499,-678.16,0.00019726,2]
[370375514,1751985049509,-460.0,0.00019726,2]
[370375516,1751985049518,-460.0,0.00019726,2]
[370375517,1751985049527,-460.0,0.00019726,2]
[370375519,1751985049537,-197.46680754,0.00019726,2]
[370375521,1751985049546,-460.0,0.00019726,2]
[370375522,1751985049559,-460.0,0.00019726,2]
[370375524,1751985049568,-460.0,0.00019726,2]
[370375525,1751985049576,-460.0,0.00019726,2]
[370375527,1751985049587,-463.66875312,0.00019726,2]
[370375529,1751985049596,-525.86,0.00019726,2]
[370375530,1751985049605,-460.0,0.00019726,2]
[370375532,1751985049614,-583.09,0.00019726,2]
[370375533,1751985049623,-460.0,0.00019726,2]
[370375535,1751985049633,-1050.14,0.00019726,2]
[370375537,1751985049641,-460.0,0.00019726,2]
[370375538,1751985049651,-553.72,0.00019726,2]
[370375540,1751985049660,-460.0,0.00019726,2]
[370375542,1751985049669,-460.0,0.00019726,2]
[370375543,1751985049679,-460.0,0.00019726,2]
[370375545,1751985049688,-863.75,0.00019726,2]
[370375546,1751985049697,-460.0,0.00019726,2]
[370375548,1751985049707,-460.0,0.00019726,2]
[370375550,1751985049716,-460.0,0.00019726,2]
[370375551,1751985049725,-460.0,0.00019726,2]
[370375553,1751985049734,-460.0,0.00019726,2]
[370375554,1751985049743,-440.0,0.00019726,2]
[370375556,1751985049753,-460.0,0.00019726,2]
[370375558,1751985049762,-490.98,0.00019726,2]
[370375559,1751985049771,-460.0,0.00019726,2]
[370375561,1751985049781,-460.0,0.00019726,2]
[370375563,1751985049789,-460.0,0.00019726,2]
[370375564,1751985049799,-460.0,0.00019726,2]
[370375566,1751985049808,-1031.65,0.00019726,2]
[370375567,1751985049817,-460.0,0.00019726,2]
[370375569,1751985049826,-460.0,0.00019726,2]
[370375571,1751985049835,-1197.75,0.00019726,2]
[370375572,1751985049844,-460.0,0.00019726,2]
[370375574,1751985049853,-460.0,0.00019726,2]
[370375575,1751985049862,-460.0,0.00019726,2]
[370375577,1751985049871,-460.0,0.00019726,2]
[370375579,1751985049881,-460.0,0.00019726,2]
[370375580,1751985049890,-460.0,0.00019726,2]
[370375582,1751985049899,-460.0,0.00019726,2]
[370375583,1751985049908,-5692.61,0.00019726,2]
[370375585,1751985049917,-460.0,0.00019726,2]
[370375587,1751985049927,-580.0,0.00019726,2]
[370375588,1751985049938,-460.0,0.00019726,2]
[370375590,1751985049948,-1545.8,0.00019726,2]
[370375591,1751985049957,-460.0,0.00019726,2]
[370375593,1751985049966,-3097.84,0.00019726,2]
[370375595,1751985049975,-460.0,0.00019726,2]
[370375596,1751985049984,-1639.3,0.00019726,2]
[370375598,1751985049993,-3002.88,0.00019726,2]
[370375599,1751985050002,-686.85,0.00019726,2]
[370375601,1751985050012,-460.0,0.00019726,2]
[370375603,1751985050022,-460.0,0.00019726,2]
[370375604,1751985050031,-460.0,0.00019726,2]
[370375606,1751985050042,-460.0,0.00019726,2]
[370375608,1751985050052,-460.0,0.00019726,2]
[370375609,1751985050061,-460.0,0.00019726,2]
[370375611,1751985050070,-460.0,0.00019726,2]
[370375612,1751985050080,-460.0,0.00019726,2]
[370375614,1751985050089,-2327.95,0.00019726,2]
[370375616,1751985050099,-460.0,0.00019726,2]
[370375617,1751985050108,-460.0,0.00019726,2]
[370375619,1751985050117,-460.0,0.00019726,2]
[370375620,1751985050126,-933.93,0.00019726,2]
[370375622,1751985050135,-460.0,0.00019726,2]
[370375624,1751985050145,-460.0,0.00019726,2]
[370375625,1751985050154,-460.0,0.00019726,2]
[370375627,1751985050164,-460.0,0.00019726,2]
[370375629,1751985050173,-460.0,0.00019726,2]
[370375630,1751985050182,-1160.18,0.00019726,2]
[370375632,1751985050193,-1139.78,0.00019726,2]
[370375633,1751985050202,-4459.04,0.00019726,2]
[370375635,1751985050211,-460.0,0.00019726,2]
[370375637,1751985050221,-460.0,0.00019726,2]
[370375639,1751985050230,-460.0,0.00019726,2]
[370375641,1751985050240,-460.0,0.00019726,2]
[370375643,1751985050249,-941.49,0.00019726,2]
[370375645,1751985050259,-460.0,0.00019726,2]
[370375647,1751985050268,-460.0,0.00019726,2]
[370375649,1751985050278,-460.0,0.00019726,2]
[370375651,1751985050287,-1141.57,0.00019726,2]
[370375653,1751985050297,-375.52209228,0.00019726,2]
[370375655,1751985050307,-460.0,0.00019726,2]
[370375657,1751985050316,-460.0,0.00019726,2]
[370375659,1751985050325,-460.0,0.00019726,2]
[370375661,1751985050335,-700.29,0.00019726,2]
[370375663,1751985050344,-460.0,0.00019726,2]
[370375665,1751985050354,-460.0,0.00019726,2]
[370375667,1751985050363,-704.42,0.00019726,2]
[370375669,1751985050372,-460.0,0.00019726,2]
[370375671,1751985050382,-574.29,0.00019726,2]
[370375672,1751985050391,-460.0,0.00019726,2]
[370375673,1751985050401,-460.0,0.00019726,2]
[370375674,1751985050410,-460.0,0.00019726,2]
[370375675,1751985050420,-1689.38,0.00019726,2]
[370375676,1751985050429,-460.0,0.00019726,2]
[370375677,1751985050440,-3240.33,0.00019726,2]
[370375678,1751985050450,-580.0,0.00019726,2]
[370375679,1751985050459,-538.23191412,0.00019726,2]
[370375680,1751985050469,-460.0,0.00019726,2]
[370375681,1751985050480,-460.0,0.00019726,2]
[370375682,1751985050491,-460.0,0.00019726,2]
[370375683,1751985050501,-460.0,0.00019726,2]
[370375684,1751985050510,-460.0,0.00019726,2]
[370375685,1751985050519,-6257.33,0.00019726,2]
[370375686,1751985050530,-460.0,0.00019726,2]
[370375687,1751985050540,-460.0,0.00019726,2]
[370375688,1751985050549,-843.0,0.00019726,2]
[370375689,1751985050560,-460.0,0.00019726,2]
[370375690,1751985050570,-777.4,0.00019726,2]
[370375691,1751985050580,-460.0,0.00019726,2]
[370375692,1751985050589,-1076.58,0.00019726,2]
[370375693,1751985050600,-216.26555427,0.00019726,2]
[370375694,1751985050610,-460.0,0.00019726,2]
[370375695,1751985050619,-460.0,0.00019726,2]
[370375696,1751985050629,-1097.71,0.00019726,2]
[370375697,1751985050639,-3328.31,0.00019726,2]
[370375698,1751985050649,-460.0,0.00019726,2]
[370375699,1751985050658,-826.32,0.00019726,2]
[370375700,1751985050668,-508.54,0.00019726,2]
[370375701,1751985050678,-460.0,0.00019726,2]
[370375702,1751985050688,-460.0,0.00019726,2]
[370375703,1751985050699,-460.0,0.00019726,2]
[370375704,1751985050709,-460.0,0.00019726,2]
[370375705,1751985050718,-460.0,0.00019726,2]
[370375706,1751985050728,-1481.55,0.00019726,2]
[370375707,1751985050737,-460.0,0.00019726,2]
[370375708,1751985050747,-460.0,0.00019726,2]
[370375709,1751985050756,-4868.85,0.00019726,2]
[370375710,1751985050765,-460.0,0.00019726,2]
[370375711,1751985050775,-460.0,0.00019726,2]
[370375712,1751985050785,-699.81,0.00019726,2]
[370375714,1751985050794,-404.73949645,0.00019726,2]
[370375715,1751985050804,-2307.53,0.00019726,2]
[370375716,1751985050814,-831.44,0.00019726,2]
[370375717,1751985050823,-500.0,0.00019726,2]
[370375719,1751985050834,-1059.86,0.00019726,2]
[370375720,1751985050843,-1232.22,0.00019726,2]
[370375721,1751985050854,-460.0,0.00019726,2]
[370375723,1751985050863,-807.22,0.00019726,2]
[370375725,1751985050873,-837.96,0.00019726,2]
[370375727,1751985050882,-460.0,0.00019726,2]
[370375729,1751985050892,-460.0,0.00019726,2]
[370375731,1751985050902,-1305.72,0.00019726,2]
[370375733,1751985050911,-729.81,0.00019726,2]
[370375735,1751985050921,-460.0,0.00019726,2]
[370375737,1751985050930,-460.0,0.00019726,2]
[370375739,1751985050942,-462.17247759,0.00019726,2]
[370375741,1751985050951,-460.0,0.00019726,2]
[370375743,1751985050960,-2787.09,0.00019726,2]
[370375745,1751985050970,-3310.96,0.00019726,2]
[370375747,1751985050980,-469.10159919,0.00019726,2]
[370375749,1751985050990,-460.0,0.00019726,2]
[370375752,1751985051000,-460.0,0.00019726,2]
[370375754,1751985051009,-460.0,0.00019726,2]
[370375756,1751985051019,-608.21,0.00019726,2]
[370375758,1751985051028,-460.0,0.00019726,2]
[370375760,1751985051038,-460.0,0.00019726,2]
[370375762,1751985051047,-1476.62,0.00019726,2]
[370375764,1751985051057,-647.74,0.00019726,2]
[370375766,1751985051066,-460.0,0.00019726,2]
[370375768,1751985051076,-201.03521453,0.00019726,2]
[370375770,1751985051086,-316.06441967,0.00019726,2]
[370375772,1751985051095,-747.86,0.00019726,2]
[370375774,1751985051105,-460.0,0.00019726,2]
[370375776,1751985051115,-460.0,0.00019726,2]
[370375778,1751985051125,-665.98,0.00019726,2]
[370375780,1751985051135,-460.0,0.00019726,2]
[370375782,1751985051144,-460.0,0.00019726,2]
[370375784,1751985051154,-2994.98,0.00019726,2]
[370375786,1751985051164,-587.11,0.00019726,2]
[370375788,1751985051174,-460.0,0.00019726,2]
[370375790,1751985051183,-686.88,0.00019726,2]
[370375792,1751985051194,-460.0,0.00019726,2]
[370375794,1751985051204,-460.0,0.00019726,2]
[370375796,1751985051213,-1028.23,0.00019726,2]
[370375798,1751985051223,-465.07,0.00019726,2]
[370375800,1751985051233,-500.0,0.00019735,2]
[370375802,1751985051242,-207.4,0.00019737,2]
[370375804,1751985051252,-690.642,0.00019737,2]
[370375806,1751985051262,-151.0,0.00019737,2]
[370375808,1751985051272,-500.0,0.00019737,2]
[370375810,1751985051282,-151.0,0.00019737,2]